lending/lending_fUSD_20260110
["ID","MTS","AMOUNT","RATE_DAILY","PERIOD"]
[401233185,1768059045086,-1828.871493,0.00018,2]
[401233186,1768059045099,-522.79719828,0.00018,2]
[401233189,1768059047303,-209.35171076,0.00014883,2]
[401233190,1768059047313,-213.7623984,0.00015906,2]
[401233191,1768059047322,-4377.79731392,0.00018,2]
[401233192,1768059047340,-1020.59555514,0.0001764,2]
[401233193,1768059047350,-3073.69226093,0.00018,2]
[401233194,1768059047361,-740.72297438,0.00018,2]
[401233195,1768059083327,500.0,0.00014047,2]
[401233196,1768059083548,500.0,0.00014047,2]
[401233197,1768059083802,500.0,0.00014047,2]
[401233198,1768059084075,250.0,0.00014226,2]
[401233199,1768059092533,500.0,0.00013948,2]
[401233200,1768059098967,1937.6865,0.00013948,2]
[401233201,1768059104764,2586.3524,0.00013948,2]
[401233202,1768059116451,13225.9611,0.00013948,2]
[401233203,1768059121292,300.0,0.00013947,2]
[401233204,1768059142173,-1049.17514544,0.00013948,2]
[401233205,1768059144215,-344.84854812,0.00013948,2]
[401233206,1768059146869,-300.0,0.00013948,2]
[401233207,1768059151092,-438.83419989,0.00013948,2]
[401233208,1768059153016,-500.0,0.00013948,2]
[401233209,1768059154435,-167.55253785,0.00013948,2]
[401233210,1768059157095,-178.7485779,0.00013948,2]
[401233211,1768059159079,-300.0,0.00013948,2]
[401233218,1768059161730,-240.01522619,0.00013948,2]
[401233220,1768059163600,1087.31761346,0.00013947,5]
[401233221,1768059163641,-305.85712123,0.00013948,2]
[401233222,1768059166146,-172.36715775,0.00013948,2]
[401233223,1768059168134,-304.05069773,0.00013948,2]
[401233224,1768059169523,-621.2467606,0.00013948,2]
[401233231,1768059174926,-295.63868731,0.00013948,2]
[401233232,1768059178095,-183.61543705,0.00013948,2]
[401233233,1768059181095,-165.7434652,0.00013948,2]
[401233234,1768059181746,150.0,0.00013947,2]
[401233235,1768059183016,-281.62,0.00013948,2]
[401233236,1768059185387,-225.77854245,0.00013948,2]
[401233237,1768059186970,177.94233856,0.00013848,2]
[401233238,1768059191358,-534.2348184,0.00013948,2]
[401233239,1768059192430,-363.40227131,0.00013948,2]
[401233240,1768059195006,-343.65027282,0.00013948,2]
[401233241,1768059197268,-294.27108077,0.00013948,2]
[401233242,1768059198800,-345.87696134,0.00013948,2]
[401233243,1768059202131,-339.55340806,0.00013948,2]
[401233244,1768059203214,-709.40178502,0.00013948,2]
[401233245,1768059205328,-290.29070041,0.00013948,2]
[401233246,1768059208414,-250.0,0.00013948,2]
[401233247,1768059210749,-443.43511023,0.00013948,2]
[401233248,1768059213099,-464.18501659,0.00013948,2]
[401233249,1768059215156,-189.01438501,0.00013948,2]
[401233250,1768059217214,-300.0,0.00013948,2]
[401233251,1768059219099,-350.0,0.00013948,2]
[401233252,1768059221122,-174.54690617,0.00013948,2]
[401233253,1768059223255,-195.0,0.00013948,2]
[401233254,1768059225930,-370.14968596,0.00013948,2]
[401233255,1768059227411,-365.97810717,0.00013948,2]
[401233256,1768059230075,-169.57086422,0.00013948,2]
[401233257,1768059233683,-172.95377143,0.00013948,2]
[401233258,1768059235286,-364.91422489,0.00013948,2]
[401233259,1768059236744,-207.62401564,0.00013948,2]
[401233260,1768059239832,-253.1701093,0.00013948,2]
[401233261,1768059241337,-230.39716007,0.00013948,2]
[401233262,1768059241630,300.0,0.00013947,2]
[401233263,1768059242822,-280.3278616,0.00013948,2]
[401233264,1768059243250,500.0,0.00013848,2]
[401233265,1768059244676,-280.57,0.00013948,2]
[401233266,1768059247123,-569.43,0.00013948,2]
[401233267,1768059249427,8572.06766144,0.00013848,2]
[401233268,1768059249457,4985.54293856,0.00013848,2]
[401233269,1768059251119,489.20930786,0.00013848,2]
[401233271,1768059263187,-441.03587444,0.00013948,2]
[401233272,1768059265961,-423.18869119,0.00013948,2]
[401233273,1768059269040,-424.01788079,0.00013948,2]
[401233274,1768059271066,-235.95137901,0.00013948,2]
[401233275,1768059272722,-317.65263784,0.00013948,2]
[401233276,1768059274785,-258.6558289,0.00013948,2]
[401233277,1768059276889,-202.81075899,0.00013948,2]
[401233278,1768059278866,-309.3320007,0.00013948,2]
[401233279,1768059281311,-344.86524192,0.00013948,2]
[401233280,1768059285527,-250.0,0.00013948,2]
[401233281,1768059288091,-343.46428555,0.00013948,2]
[401233282,1768059290793,-366.23046181,0.00013948,2]
[401233283,1768059295031,-300.0,0.00013948,2]
[401233284,1768059297782,-188.43739283,0.00013948,2]
[401233285,1768059299342,-319.51363937,0.00013948,2]
[401233286,1768059300870,-262.8601924,0.00013948,2]
[401233287,1768059301271,300.0,0.00013947,2]
[401233288,1768059301556,1200.0,0.00013947,2]
[401233289,1768059303433,-172.83258673,0.00013948,2]
[401233290,1768059307643,-327.35102196,0.00013948,2]
[401233291,1768059310705,-285.11861132,0.00013948,2]
[401233292,1768059312184,-500.0,0.00013948,2]
[401233293,1768059314112,-406.26850055,0.00013948,2]
[401233294,1768059315504,-198.84160383,0.00013948,2]
[401233295,1768059317864,-168.55888683,0.00013948,2]
[401233296,1768059319352,-199.82489782,0.00013948,2]
[401233297,1768059321382,-311.08932954,0.00013948,2]
[401233301,1768059323584,-166.66,0.00013948,2]
[401233312,1768059326715,-265.35230462,0.00013948,2]
[401233313,1768059328773,-158.5071362,0.00013948,2]
[401233314,1768059331109,-1000.04055834,0.00013948,2]
[401233315,1768059334912,-390.97888552,0.00013948,2]
[401233316,1768059371710,500.0,0.00013848,2]
[401233317,1768059372429,177.94233854,0.00013848,2]
[401233318,1768059398552,2347.31541504,0.00013848,2]
[401233319,1768059398578,7761.55518496,0.00013848,2]
[401233329,1768059421553,300.0,0.00013947,2]
[401233330,1768059426217,151.0,0.00013948,2]
[401233340,1768059520852,161.2772,0.00013848,2]
[401233345,1768059579361,273.5996837,0.00013936,2]
[401233346,1768059587610,177.94233854,0.00013935,2]
[401233347,1768059601442,300.0,0.00013947,2]
[401233348,1768059601655,874.6355928,0.00013947,2]
[401233349,1768059601681,325.3644072,0.00013947,2]
[401233350,1768059603257,1073.5027,0.00013848,2]
[401233351,1768059605505,1155.35349648,0.00013935,2]
[401233352,1768059661810,300.0,0.00013947,2]
[401233353,1768059693882,179.537,0.00013669,2]
[401233354,1768059694421,2648.016,0.00013669,2]
[401233355,1768059702484,-841172.447,0.00013948,2]
[401233356,1768059742802,-320.29133073,0.00013948,2]
[401233358,1768059781657,300.0,0.00013947,2]
[401233359,1768059825011,320.2913,0.00013848,2]
[401233361,1768059874144,3497.9376,0.00013848,2]
[401233362,1768059901414,1200.0,0.00013947,2]
[401233365,1768059975238,1614.75,8.164e-05,2]
[401233366,1768059975442,212.81049632,8.577e-05,2]
[401233367,1768059975471,1401.93950368,8.577e-05,2]
[401233368,1768059975646,1614.75,8.99e-05,2]
[401233369,1768059975840,1614.75,9.403e-05,2]
[401233370,1768059976038,1614.75,9.815e-05,2]
[401233371,1768059976240,1614.75,0.00010228,2]
[401233372,1768059976457,1614.75,0.00010641,2]
[401233373,1768059976660,524.32049632,0.00011054,2]
[401233374,1768059976689,1090.42950368,0.00011054,2]
[401233375,1768059976850,1614.75,0.00011467,2]
[401233376,1768059977575,1614.75,0.0001188,2]
[401233377,1768059977637,1614.75,0.00012293,2]
[401233378,1768059977682,1614.75,0.00012705,2]
[401233379,1768059977826,1614.75,0.00013118,2]
[401233380,1768059978041,835.83049632,0.00013531,2]
[401233381,1768059978071,778.91950368,0.00013531,2]
[401233382,1768059978322,1614.75,0.00013944,2]
[401233383,1768060081353,300.0,0.00013947,2]
[401233384,1768060081683,150.0,0.00013947,2]
[401233385,1768060082109,300.0,0.00013947,2]
[401233392,1768060145413,9250.01,0.00013848,2]
[401233393,1768060145450,10000.01,0.00013848,2]
[401233394,1768060145484,10000.01,0.00013848,2]
[401233395,1768060145516,10000.01,0.00013848,2]
[401233396,1768060145548,10000.01,0.00013848,2]
[401233397,1768060145580,10000.01,0.00013848,2]
[401233398,1768060145616,10000.01,0.00013848,2]
[401233399,1768060145657,10000.01,0.00013848,2]
[401233402,1768060145694,10000.01,0.00013848,2]
[401233403,1768060145723,5227.80422662,0.00013848,2]
[401233405,1768060145753,5268.47034734,0.00013848,2]
[401233406,1768060145786,5268.47034734,0.00013848,2]
[401233407,1768060145817,5268.47034734,0.00013848,2]
[401233408,1768060145849,5268.47034734,0.00013848,2]
[401233409,1768060145882,5268.47034734,0.00013848,2]
[401233410,1768060145913,5268.47034734,0.00013848,2]
[401233411,1768060145944,5268.47034734,0.00013848,2]
[401233412,1768060145974,5268.47034734,0.00013848,2]
[401233413,1768060201885,1200.0,0.00013847,2]
[401233424,1768060231557,-12064.18574812,0.00013848,2]
[401233425,1768060231568,-1868.9073989,0.00013848,2]
[401233426,1768060231581,-4260.64855834,0.00013848,2]
[401233427,1768060231619,-747.95534407,0.00013848,2]
[401233428,1768060231631,-316.23148142,0.00013848,2]
[401233429,1768060231685,-1248.64,0.00013848,2]
[401233431,1768060231749,-14695.48049288,0.00013848,2]
[401233470,1768060237606,-2224.17408572,0.00013848,2]
[401233471,1768060237663,-455.08116405,0.00013848,2]
[401233472,1768060237719,-485.4300017,0.00013848,2]
[401233640,1768060239989,-825007.60871946,0.00013848,2]
[401233642,1768060240000,-264.0,0.00013848,2]
[401233644,1768060240010,-250.0,0.00013948,2]
[401233647,1768060240019,-1614.75,0.00014357,2]
[401233648,1768060240029,-1614.75,0.0001477,2]
[401233651,1768060240039,-409.02215808,0.00014796,2]
[401233653,1768060240049,-151.0,0.00014796,2]
[401233655,1768060240059,-553.64373807,0.00014796,2]
[401233657,1768060240069,-151.0,0.00014796,2]
[401233659,1768060240080,-500.0,0.00014796,2]
[401233661,1768060240089,-500.0,0.00014796,2]
[401233663,1768060240099,-1000.0,0.00014796,2]
[401233665,1768060240108,-1000.0,0.00014796,2]
[401233667,1768060240118,-1000.0,0.00014796,2]
[401233669,1768060240128,-500.0,0.00014796,2]
[401233671,1768060240137,-500.0,0.00014796,2]
[401233673,1768060240151,-250.0,0.00014796,2]
[401233675,1768060240160,-250.0,0.00014796,2]
[401233677,1768060240171,-250.0,0.00014796,2]
[401233679,1768060240181,-250.0,0.00014796,2]
[401233681,1768060240190,-250.0,0.00014796,2]
[401233683,1768060240199,-250.0,0.00014796,2]
[401233685,1768060240209,-250.0,0.00014796,2]
[401233687,1768060240219,-250.0,0.00014796,2]
[401233689,1768060240228,-250.0,0.00014796,2]
[401233691,1768060240237,-250.0,0.00014796,2]
[401233693,1768060240247,-250.0,0.00014796,2]
[401233695,1768060240256,-250.0,0.00014796,2]
[401233697,1768060240266,-250.0,0.00014796,2]
[401233699,1768060240275,-250.0,0.00014796,2]
[401233701,1768060240284,-250.0,0.00014796,2]
[401233703,1768060240294,-250.0,0.00014796,2]
[401233705,1768060240303,-250.0,0.00014796,2]
[401233707,1768060240312,-250.0,0.00014796,2]
[401233709,1768060240322,-998.0,0.00014796,2]
[401233711,1768060240331,-266.0,0.00015151,2]
[401233713,1768060240340,-1614.75,0.00015183,2]
[401233716,1768060240352,-1680.0,0.00015231,2]
[401233718,1768060240362,-300.0,0.00015232,2]
[401233720,1768060240372,-150.99,0.0001528,2]
[401233722,1768060240382,-250.0,0.00015342,2]
[401233724,1768060240392,-250.0,0.00015342,2]
[401233726,1768060240405,-574.12855637,0.00015344,2]
[401233728,1768060240414,-1614.75,0.00015595,2]
[401233729,1768060240423,-151.0,0.00015709,2]
[401233730,1768060240432,-151.0,0.00015709,2]
[401233731,1768060240442,-151.0,0.00015713,2]
[401233732,1768060240451,-500.0,0.00015781,2]
[401233733,1768060240460,-595.37131296,0.00015892,2]
[401233734,1768060240470,-1614.75,0.00016008,2]
[401233735,1768060240480,-151.0,0.00016165,2]
[401233736,1768060240488,-150.0,0.000162,2]
[401233737,1768060240498,-150.0,0.000162,2]
[401233738,1768060240507,-150.0,0.000162,2]
[401233739,1768060240516,-150.0,0.000162,2]
[401233740,1768060240525,-150.0,0.000162,2]
[401233742,1768060240535,-150.0,0.000162,2]
[401233744,1768060240545,-150.0,0.000162,2]
[401233746,1768060240554,-150.0,0.000162,2]
[401233748,1768060240564,-150.0,0.000162,2]
[401233750,1768060240574,-150.0,0.000162,2]
[401233752,1768060240584,-150.0,0.000162,2]
[401233754,1768060240593,-150.0,0.000162,2]
[401233756,1768060240603,-1039.81814685,0.00016203,2]
[401233758,1768060240612,-150.0,0.00016269,2]
[401233760,1768060240622,-1964.15,0.00016294,2]
[401233762,1768060240631,-166.66,0.00016303,2]
[401233764,1768060240641,-150.0,0.00016338,2]
[401233766,1768060240651,-1039.81814676,0.00016392,2]
[401233768,1768060240660,-150.0,0.00016408,2]
[401233770,1768060240670,-617.40005154,0.0001644,2]
[401233772,1768060240679,-150.0,0.00016477,2]
[401233774,1768060240688,-150.0,0.00016546,2]
[401233776,1768060240698,-150.0,0.0001656,2]
[401233778,1768060240707,-150.0,0.0001656,2]
[401233780,1768060240716,-150.0,0.0001656,2]
[401233782,1768060240726,-1039.81814676,0.0001658,2]
[401233784,1768060240736,-181.58,0.00016582,2]
[401233786,1768060240746,-150.0,0.00016615,2]
[401233788,1768060240756,-1000.0,0.00016617,2]
[401233790,1768060240765,-166.66,0.00016646,2]
[401233792,1768060240774,-150.0,0.0001665,2]
[401233794,1768060240785,-150.0,0.0001665,2]
[401233796,1768060240795,-150.0,0.00016685,2]
[401233798,1768060240805,-150.0,0.00016754,2]
[401233800,1768060240814,-2351.0,0.00016754,2]
[401233802,1768060240824,-1039.81814676,0.00016769,2]
[401233804,1768060240833,-150.0,0.00016796,2]
[401233807,1768060240844,-150.0,0.000168,2]
[401233809,1768060240853,-150.0,0.00016823,2]
[401233811,1768060240863,-150.0,0.00016892,2]
[401233813,1768060240874,-150.0,0.0001692,2]
[401233815,1768060240884,-150.0,0.0001692,2]
[401233817,1768060240893,-150.0,0.0001692,2]
[401233818,1768060240902,-1039.81814676,0.00016957,2]
[401233821,1768060240912,-150.0,0.00016962,2]
[401233822,1768060240924,-50478.3,0.00016986,2]
[401233825,1768060240935,-640.24385345,0.00016988,2]
[401233827,1768060240947,-166.66,0.00016989,2]
[401233829,1768060240956,-1852.42,0.00016998,2]
[401233831,1768060240966,-250.0,0.00017,2]
[401233833,1768060240975,-150.0,0.00017031,2]
[401233835,1768060240985,-150.0,0.000171,2]
[401233837,1768060240995,-150.0,0.000171,2]
[401233838,1768060241004,-150.0,0.000171,2]
[401233841,1768060241015,-1000.0,0.000171,2]
[401233842,1768060241027,-1039.81814676,0.00017146,2]
[401233844,1768060241037,-150.0,0.00017169,2]
[401233846,1768060241047,-150.0,0.00017238,2]
[401233849,1768060241058,-150.0,0.0001728,2]
[401233851,1768060241069,-150.0,0.0001728,2]
[401233852,1768060241079,-150.0,0.0001728,2]
[401233855,1768060241090,-1000.0,0.000173,2]
[401233857,1768060241099,-1000.0,0.000173,2]
[401233858,1768060241108,-159.16121496,0.00017307,2]
[401233861,1768060241119,-150.0,0.00017308,2]
[401233863,1768060241128,-166.66,0.00017332,2]
[401233865,1768060241138,-1039.81814676,0.00017334,2]
[401233867,1768060241147,-290.33169083,0.00017357,2]
[401233869,1768060241156,-150.0,0.00017377,2]
[401233871,1768060241165,-150.0,0.000174,2]
[401233873,1768060241175,-1000.0,0.000174,2]
[401233875,1768060241184,-150.0,0.00017446,2]
[401233877,1768060241195,-2000.0,0.000175,2]
[401233879,1768060241204,-500.0,0.000175,3]
[401233881,1768060241214,-150.0,0.00017515,2]
[401233883,1768060241223,-1039.81814676,0.00017523,2]
[401233885,1768060241233,-150.0,0.00017534,2]
[401233887,1768060241243,-150.0,0.00017534,2]
[401233889,1768060241252,-150.0,0.00017534,2]
[401233891,1768060241261,-159.48620506,0.00017534,2]
[401233893,1768060241271,-150.0,0.00017534,2]
[401233895,1768060241281,-150.0,0.00017534,2]
[401233897,1768060241291,-150.0,0.00017534,2]
[401233899,1768060241301,-150.47221411,0.00017534,2]
[401233901,1768060241310,-154.63310994,0.00017534,2]
[401233903,1768060241319,-150.0,0.00017534,2]
[401233905,1768060241329,-150.0,0.00017534,2]
[401233907,1768060241338,-150.0,0.00017534,2]
[401233909,1768060241347,-228.01696558,0.00017534,2]
[401233911,1768060241356,-998.0,0.00017535,2]
[401233913,1768060241366,-663.93287602,0.00017536,2]
[401233915,1768060241376,-150.0,0.0001755,2]
[401233917,1768060241386,-150.0,0.0001755,2]
[401233919,1768060241397,-150.0,0.00017585,2]
[401233921,1768060241409,-150.0,0.00017589,2]
[401233923,1768060241418,-500.0,0.00017589,2]
[401233925,1768060241427,-150.0,0.0001764,2]
[401233927,1768060241437,-150.0,0.0001764,2]
[401233929,1768060241447,-150.0,0.0001764,2]
[401233931,1768060241456,-1114.5894673,0.0001764,2]
[401233933,1768060241466,-1333.41070046,0.0001764,2]
[401233935,1768060241476,-200.0,0.00017644,2]
[401233937,1768060241485,-150.0,0.00017654,2]
[401233939,1768060241495,-346.01,0.0001767,2]
[401233941,1768060241514,-166.66,0.00017675,2]
[401233943,1768060241523,-1039.81814676,0.00017711,2]
[401233945,1768060241533,-166.02693644,0.0001772,2]
[401233947,1768060241543,-150.0,0.00017723,2]
[401233949,1768060241553,-150.0,0.00017792,2]
[401233951,1768060241563,-150.0,0.00017808,2]
[401233953,1768060241572,-4314.0,0.00017819,2]
[401233955,1768060241582,-1330.0,0.0001782,2]
[401233957,1768060241593,-1405.0,0.0001782,2]
[401233959,1768060241609,-614.0,0.0001782,2]
[401233961,1768060241619,-3468.0,0.0001782,2]
[401233963,1768060241637,-505.0,0.0001782,2]
[401233965,1768060241649,-1266.0,0.0001782,2]
[401233967,1768060241658,-914.0,0.0001782,2]
[401233969,1768060241668,-1201.0,0.0001782,2]
[401233971,1768060241677,-150.0,0.0001782,2]
[401233973,1768060241687,-6554.0,0.0001782,2]
[401233975,1768060241697,-4820.0,0.0001782,2]
[401233977,1768060241707,-2000.0,0.00017856,2]
[401233979,1768060241716,-200.0,0.00017856,2]
[401233981,1768060241726,-150.0,0.00017862,2]
[401233984,1768060241736,-150.0,0.00017863,2]
[401233986,1768060241746,-177.94233854,0.00017899,2]
[401233988,1768060241756,-165.88,0.000179,2]
[401233990,1768060241766,-10000.0,0.000179,2]
[401233992,1768060241775,-1008.0,0.000179,2]
[401233994,1768060241785,-1740.0035,0.000179,2]
[401233996,1768060241794,-1039.81814676,0.000179,2]
[401233998,1768060241804,-4783.53323714,0.000179,2]
[401234000,1768060241814,-781.0731923,0.000179,2]
[401234002,1768060241823,-200.0,0.00017918,2]
[401234004,1768060241834,-150.0,0.00017931,2]
[401234006,1768060241843,-500.0,0.00017973,2]
[401234008,1768060241853,-500.0,0.00017973,2]
[401234010,1768060241863,-500.0,0.00017973,2]
[401234012,1768060241873,-500.0,0.00017973,2]
[401234014,1768060241883,-500.0,0.00017973,2]
[401234016,1768060241892,-500.0,0.00017973,2]
[401234018,1768060241902,-500.0,0.00017973,2]
[401234020,1768060241912,-500.0,0.00017973,2]
[401234022,1768060241921,-500.0,0.00017973,2]
[401234024,1768060241931,-500.0,0.00017973,2]
[401234026,1768060241940,-500.0,0.00017973,2]
[401234028,1768060241950,-500.0,0.00017973,2]
[401234031,1768060241960,-500.0,0.00017973,2]
[401234033,1768060241970,-500.0,0.00017973,2]
[401234035,1768060241980,-500.0,0.00017973,2]
[401234037,1768060241990,-380.05360747,0.00017973,2]
[401234039,1768060242001,-500.0,0.00017973,2]
[401234041,1768060242010,-500.0,0.00017973,2]
[401234043,1768060242020,-500.0,0.00017973,2]
[401234045,1768060242031,-500.0,0.00017973,2]
[401234047,1768060242040,-500.0,0.00017973,2]
[401234049,1768060242050,-500.0,0.00017973,2]
[401234051,1768060242059,-500.0,0.00017973,2]
[401234053,1768060242069,-500.0,0.00017973,2]
[401234055,1768060242079,-500.0,0.00017973,2]
[401234057,1768060242088,-500.0,0.00017973,2]
[401234059,1768060242097,-500.0,0.00017973,2]
[401234061,1768060242107,-171.83605725,0.00017973,2]
[401234063,1768060242117,-500.0,0.00017973,2]
[401234065,1768060242126,-632.76984978,0.00017973,2]
[401234067,1768060242135,-183.2165965,0.00017973,2]
[401234070,1768060242145,-500.0,0.00017973,2]
[401234072,1768060242155,-500.0,0.00017973,2]
[401234074,1768060242164,-948.9206384,0.0001799,2]
[401234076,1768060242174,-948.9206384,0.0001799,2]
[401234078,1768060242184,-948.9206384,0.0001799,2]
[401234080,1768060242193,-168.0,0.00017995,2]
[401234082,1768060242202,-500.0,0.00017999,2]
[401234084,1768060242212,-500.0,0.00017999,2]
[401234086,1768060242221,-586.37906068,0.00017999,2]
[401234088,1768060242230,-500.0,0.00017999,2]
[401234090,1768060242240,-500.0,0.00017999,2]
[401234092,1768060242250,-590.50521822,0.00017999,2]
[401234094,1768060242259,-233.5887432,0.00017999,2]
[401234096,1768060242268,-500.0,0.00017999,2]
[401234098,1768060242278,-450.2767749,0.00017999,2]
[401234100,1768060242287,-500.0,0.00017999,2]
[401234102,1768060242297,-500.0,0.00017999,2]
[401234104,1768060242306,-500.0,0.00017999,2]
[401234106,1768060242316,-500.0,0.00017999,2]
[401234108,1768060242326,-499.99999999,0.00017999,2]
[401234110,1768060242335,-500.0,0.00017999,2]
[401234112,1768060242346,-500.0,0.00017999,2]
[401234114,1768060242355,-500.0,0.00017999,2]
[401234116,1768060242365,-500.0,0.00017999,2]
[401234118,1768060242374,-500.0,0.00017999,2]
[401234120,1768060242385,-500.0,0.00017999,2]
[401234122,1768060242395,-500.0,0.00017999,2]
[401234124,1768060242408,-500.0,0.00017999,2]
[401234126,1768060242418,-500.0,0.00017999,2]
[401234128,1768060242427,-500.0,0.00017999,2]
[401234130,1768060242436,-500.0,0.00017999,2]
[401234133,1768060242448,-500.0,0.00017999,2]
[401234136,1768060242458,-500.0,0.00017999,2]
[401234139,1768060242467,-500.0,0.00017999,2]
[401234141,1768060242478,-500.0,0.00017999,2]
[401234143,1768060242487,-455.71446841,0.00017999,2]
[401234145,1768060242496,-500.0,0.00017999,2]
[401234147,1768060242506,-500.0,0.00017999,2]
[401234149,1768060242516,-500.0,0.00017999,2]
[401234151,1768060242525,-500.0,0.00017999,2]
[401234153,1768060242535,-500.0,0.00017999,2]
[401234155,1768060242544,-500.0,0.00017999,2]
[401234157,1768060242554,-500.0,0.00017999,2]
[401234159,1768060242564,-500.0,0.00017999,2]
[401234161,1768060242573,-500.0,0.00017999,2]
[401234163,1768060242583,-500.0,0.00017999,2]
[401234165,1768060242592,-500.0,0.00017999,2]
[401234167,1768060242602,-500.0,0.00017999,2]
[401234169,1768060242612,-500.0,0.00017999,2]
[401234171,1768060242621,-500.0,0.00017999,2]
[401234173,1768060242630,-500.0,0.00017999,2]
[401234175,1768060242639,-500.0,0.00017999,2]
[401234177,1768060242648,-500.0,0.00017999,2]
[401234179,1768060242658,-500.0,0.00017999,2]
[401234181,1768060242667,-500.0,0.00017999,2]
[401234183,1768060242676,-500.0,0.00017999,2]
[401234185,1768060242685,-500.0,0.00017999,2]
[401234187,1768060242695,-500.0,0.00017999,2]
[401234189,1768060242703,-500.0,0.00017999,2]
[401234191,1768060242714,-500.0,0.00017999,2]
[401234193,1768060242723,-500.0,0.00017999,2]
[401234195,1768060242732,-500.0,0.00017999,2]
[401234197,1768060242742,-500.0,0.00017999,2]
[401234199,1768060242752,-500.0,0.00017999,2]
[401234201,1768060242762,-500.0,0.00017999,2]
[401234203,1768060242771,-500.0,0.00017999,2]
[401234205,1768060242784,-500.0,0.00017999,2]
[401234207,1768060242793,-500.0,0.00017999,2]
[401234209,1768060242802,-500.0,0.00017999,2]
[401234211,1768060242812,-500.0,0.00017999,2]
[401234213,1768060242821,-500.0,0.00017999,2]
[401234215,1768060242830,-500.0,0.00017999,2]
[401234217,1768060242839,-500.0,0.00017999,2]
[401234219,1768060242848,-500.0,0.00017999,2]
[401234221,1768060242858,-500.0,0.00017999,2]
[401234223,1768060242867,-500.0,0.00017999,2]
[401234225,1768060242876,-500.0,0.00017999,2]
[401234227,1768060242886,-500.0,0.00017999,2]
[401234229,1768060242895,-500.0,0.00017999,2]
[401234231,1768060242904,-500.0,0.00017999,2]
[401234233,1768060242914,-500.0,0.00017999,2]
[401234235,1768060242923,-500.0,0.00017999,2]
[401234237,1768060242932,-500.0,0.00017999,2]
[401234239,1768060242943,-500.0,0.00017999,2]
[401234241,1768060242953,-500.0,0.00017999,2]
[401234243,1768060242962,-500.0,0.00017999,2]
[401234245,1768060242972,-500.0,0.00017999,2]
[401234247,1768060242982,-500.0,0.00017999,2]
[401234249,1768060242991,-500.0,0.00017999,2]
[401234251,1768060243001,-594.80194414,0.00017999,2]
[401234279,1768060243239,-500.0,0.00017999,2]
[401234281,1768060243258,-500.0,0.00017999,2]
[401234283,1768060243268,-500.0,0.00017999,2]
[401234285,1768060243277,-500.0,0.00017999,2]
[401234287,1768060243286,-500.0,0.00017999,2]
[401234289,1768060243295,-259.48019441,0.00017999,2]
[401234291,1768060243306,-500.0,0.00017999,2]
[401234293,1768060243315,-623.96972889,0.00017999,2]
[401234295,1768060243325,-600.28522711,0.00018,2]
[401234298,1768060243335,-293.02410484,0.00018,2]
[401234299,1768060243344,-260.74974548,0.00018,2]
[401234302,1768060243354,-152.17395716,0.00018,2]
[401234304,1768060243363,-255.49693576,0.00018,2]
[401234305,1768060243372,-155.27623948,0.00018,2]
[401234307,1768060243382,-150.0,0.00018,2]
[401234310,1768060243392,-252.12379273,0.00018,2]
[401234311,1768060243406,-258.8757006,0.00018,2]